[Event "*** Titled Tuesday Blitz"]
[Site "Chess.com"]
[Date "2019.11.05"]
[Round "3"]
[White "Philosopherrr"]
[Black "Vojtap"]
[Result "1-0"]
[WhiteElo "2343"]
[BlackElo "2144"]
[TimeControl "180+2"]
[EndTime "13:38:04 PST"]
[Termination "Philosopherrr won by resignation"]

1. c4 {[%clk 0:03:01.9]} 1... Nf6 {[%clk 0:02:56.4]} 2. Nc3 {[%clk 0:03:01.2]}
2... g6 {[%clk 0:02:57]} 3. Nf3 {[%clk 0:03:01.8]} 3... Bg7 {[%clk 0:02:54.7]}
4. h4 {[%clk 0:03:02.5]} 4... h5 {[%clk 0:02:51.8]} 5. e4 {[%clk 0:03:00.5]}
5... d6 {[%clk 0:02:52.2]} 6. d4 {[%clk 0:03:01.1]} 6... O-O {[%clk 0:02:52.6]}
7. Ng5 {[%clk 0:02:59.5]} 7... e5 {[%clk 0:02:48.2]} 8. d5 {[%clk 0:02:45.3]}
8... Na6 {[%clk 0:02:46.5]} 9. Be2 {[%clk 0:02:44.8]} 9... Bd7 {[%clk
0:02:39.4]} 10. Be3 {[%clk 0:02:39.2]} 10... c6 {[%clk 0:02:25.7]} 11. dxc6
{[%clk 0:02:36.6]} 11... Bxc6 {[%clk 0:02:25.2]} 12. Nd5 {[%clk 0:02:37.8]}
12... Nc5 {[%clk 0:02:23.9]} 13. Bxc5 {[%clk 0:02:26.6]} 13... dxc5 {[%clk
0:02:25.8]} 14. O-O {[%clk 0:02:27.9]} 14... Nh7 {[%clk 0:01:56.1]} 15. Nxh7
{[%clk 0:02:27.8]} 15... Kxh7 {[%clk 0:01:56.6]} 16. g3 {[%clk 0:02:28.8]} 16...
f5 {[%clk 0:01:55.1]} 17. exf5 {[%clk 0:02:29.3]} 17... Rxf5 {[%clk 0:01:54.4]}
18. Bd3 {[%clk 0:02:30.5]} 18... e4 {[%clk 0:01:21.9]} 19. Bxe4 {[%clk
0:02:28.6]} 19... Re5 {[%clk 0:01:22.7]} 20. Qc2 {[%clk 0:02:21.2]} 20... Qd6
{[%clk 0:01:06.4]} 21. Rad1 {[%clk 0:02:18.8]} 21... Rae8 {[%clk 0:01:06.7]} 22.
Bg2 {[%clk 0:02:18.8]} 22... Qf8 {[%clk 0:01:02.9]} 23. Nf4 {[%clk 0:02:06.8]}
23... Rf5 {[%clk 0:00:58.7]} 24. Bxc6 {[%clk 0:02:06.4]} 24... bxc6 {[%clk
0:00:59.2]} 25. Rfe1 {[%clk 0:01:50.8]} 25... Be5 {[%clk 0:00:45.2]} 26. Rd7+
{[%clk 0:01:47.8]} 26... Kh6 {[%clk 0:00:42.9]} 27. Nh3 {[%clk 0:01:42.1]} 27...
Re7 {[%clk 0:00:23.4]} 28. Qd2+ {[%clk 0:01:38]} 28... Kg7 {[%clk 0:00:22.4]}
29. Rxe7+ {[%clk 0:01:37.1]} 29... Qxe7 {[%clk 0:00:24.1]} 30. f4 {[%clk
0:01:38.5]} 30... Qd6 {[%clk 0:00:20.5]} 31. Qxd6 {[%clk 0:01:36.5]} 31... Bxd6
{[%clk 0:00:22.4]} 32. Re6 {[%clk 0:01:37.6]} 32... Rf6 {[%clk 0:00:23.1]} 33.
Rxf6 {[%clk 0:01:38.7]} 33... Kxf6 {[%clk 0:00:24]} 34. Kf2 {[%clk 0:01:39.7]}
34... Kf5 {[%clk 0:00:25.1]} 35. Kf3 {[%clk 0:01:41.1]} 35... Be7 {[%clk
0:00:23.5]} 36. Nf2 {[%clk 0:01:38.4]} 36... Bf6 {[%clk 0:00:24.2]} 37. b3
{[%clk 0:01:39.8]} 37... Bd4 {[%clk 0:00:21.6]} 38. Ne4 {[%clk 0:01:41]} 38...
Ke6 {[%clk 0:00:22]} 39. g4 {[%clk 0:01:36]} 39... Ke7 {[%clk 0:00:17.6]} 40.
gxh5 {[%clk 0:01:35]} 40... gxh5 {[%clk 0:00:19.5]} 41. Ng3 {[%clk 0:01:36.5]}
41... Bf6 {[%clk 0:00:18.5]} 42. Ke4 {[%clk 0:01:37.6]} 42... Ke6 {[%clk
0:00:18.8]} 43. Nxh5 {[%clk 0:01:38.8]} 43... Bxh4 {[%clk 0:00:19.5]} 44. f5+
{[%clk 0:01:40.3]} 44... Ke7 {[%clk 0:00:20.2]} 45. Ke5 {[%clk 0:01:39.2]} 45...
Bf2 {[%clk 0:00:20.8]} 46. f6+ {[%clk 0:01:40]} 46... Kf7 {[%clk 0:00:21.9]} 47.
Kd6 {[%clk 0:01:40.5]} 47... Be1 {[%clk 0:00:17.8]} 48. Kxc6 {[%clk 0:01:41.5]}
48... Bb4 {[%clk 0:00:17.9]} 49. Nf4 {[%clk 0:01:40.3]} 49... Kxf6 {[%clk
0:00:15.2]} 50. Nd5+ {[%clk 0:01:41.2]} 50... Ke5 {[%clk 0:00:16.4]} 51. Nxb4
{[%clk 0:01:43.1]} 51... cxb4 {[%clk 0:00:17.6]} 52. Kb5 {[%clk 0:01:42.2]}
52... Kd4 {[%clk 0:00:17.1]} 53. Kxb4 {[%clk 0:01:43.3]} 1-0

[Event "*** Titled Tuesday Blitz"]
[Site "Chess.com"]
[Date "2019.11.05"]
[Round "3"]
[White "babadroga92"]
[Black "severomorskij"]
[Result "0-1"]
[WhiteElo "2666"]
[BlackElo "2864"]
[TimeControl "180+2"]
[EndTime "13:38:17 PST"]
[Termination "severomorskij won on time"]

1. e4 {[%clk 0:03:01.9]} 1... c5 {[%clk 0:03:00]} 2. Nf3 {[%clk 0:03:03.1]} 2...
Nc6 {[%clk 0:03:01.5]} 3. Bb5 {[%clk 0:03:04.7]} 3... g6 {[%clk 0:03:00.5]} 4.
Bxc6 {[%clk 0:03:06.2]} 4... dxc6 {[%clk 0:03:00.5]} 5. h3 {[%clk 0:03:07.3]}
5... Bg7 {[%clk 0:03:01.5]} 6. d3 {[%clk 0:03:08.1]} 6... Qc7 {[%clk 0:02:59.4]}
7. Nc3 {[%clk 0:03:09.4]} 7... e5 {[%clk 0:03:00.1]} 8. Be3 {[%clk 0:03:07.3]}
8... b6 {[%clk 0:02:58.6]} 9. a3 {[%clk 0:03:07.1]} 9... Be6 {[%clk 0:02:58]}
10. b4 {[%clk 0:03:04.6]} 10... c4 {[%clk 0:02:55.5]} 11. b5 {[%clk 0:02:33.1]}
11... cxd3 {[%clk 0:02:50.2]} 12. Qxd3 {[%clk 0:02:29.5]} 12... Rd8 {[%clk
0:02:49.6]} 13. Qe2 {[%clk 0:02:25.9]} 13... Ne7 {[%clk 0:02:39]} 14. O-O {[%clk
0:02:21.6]} 14... h6 {[%clk 0:02:37.3]} 15. Rfd1 {[%clk 0:02:05.6]} 15... O-O
{[%clk 0:02:36.2]} 16. a4 {[%clk 0:01:58.6]} 16... Kh7 {[%clk 0:02:33.1]} 17.
Ne1 {[%clk 0:01:28.9]} 17... f5 {[%clk 0:02:15.7]} 18. f3 {[%clk 0:01:18.3]}
18... f4 {[%clk 0:02:16.3]} 19. Bf2 {[%clk 0:01:18.3]} 19... g5 {[%clk
0:02:17.8]} 20. Nd3 {[%clk 0:01:04.1]} 20... Bc4 {[%clk 0:02:16.8]} 21. Rd2
{[%clk 0:00:57.7]} 21... h5 {[%clk 0:02:04.6]} 22. Qd1 {[%clk 0:00:50.9]} 22...
c5 {[%clk 0:01:55.5]} 23. Nb2 {[%clk 0:00:41.8]} 23... Be6 {[%clk 0:01:55.9]}
24. a5 {[%clk 0:00:33.1]} 24... Ng6 {[%clk 0:01:52.6]} 25. Nd5 {[%clk 0:00:32]}
25... Bxd5 {[%clk 0:01:42.9]} 26. Rxd5 {[%clk 0:00:33.9]} 26... Rxd5 {[%clk
0:01:41.2]} 27. Qxd5 {[%clk 0:00:29.4]} 27... Rd8 {[%clk 0:01:41.8]} 28. axb6
{[%clk 0:00:25.9]} 28... axb6 {[%clk 0:01:43.7]} 29. Ra7 {[%clk 0:00:08.8]}
29... Qxa7 {[%clk 0:01:29.9]} 30. Qxd8 {[%clk 0:00:09.9]} 30... Qa1+ {[%clk
0:01:21.7]} 31. Nd1 {[%clk 0:00:10.2]} 31... Qc1 {[%clk 0:01:16.7]} 32. c4
{[%clk 0:00:10.1]} 32... Qxc4 {[%clk 0:01:12.3]} 33. Qxb6 {[%clk 0:00:03.6]}
33... Qd3 {[%clk 0:01:12.1]} 34. Nb2 {[%clk 0:00:04.2]} 34... Qb1+ {[%clk
0:01:12.9]} 35. Kh2 {[%clk 0:00:05.8]} 35... Qxb2 {[%clk 0:01:09]} 36. Qxc5
{[%clk 0:00:07.4]} 36... Bf8 {[%clk 0:00:50.2]} 37. Qa7+ {[%clk 0:00:07.7]}
37... Kh6 {[%clk 0:00:50.9]} 38. Bg1 {[%clk 0:00:04.2]} 38... Qxb5 {[%clk
0:00:45.4]} 39. Qf7 {[%clk 0:00:03.3]} 39... Bc5 {[%clk 0:00:36.2]} 0-1

[Event "*** Titled Tuesday Blitz"]
[Site "Chess.com"]
[Date "2019.11.05"]
[Round "3"]
[White "vova-79"]
[Black "zim0ne"]
[Result "0-1"]
[WhiteElo "2417"]
[BlackElo "2625"]
[TimeControl "180+2"]
[EndTime "13:38:17 PST"]
[Termination "zim0ne won by resignation"]

1. d4 {[%clk 0:03:01.9]} 1... Nf6 {[%clk 0:02:36.9]} 2. c4 {[%clk 0:03:01.2]}
2... g6 {[%clk 0:02:38.1]} 3. Nf3 {[%clk 0:03:00]} 3... Bg7 {[%clk 0:02:39.2]}
4. g3 {[%clk 0:02:59.2]} 4... d5 {[%clk 0:02:32.7]} 5. cxd5 {[%clk 0:02:57.9]}
5... Nxd5 {[%clk 0:02:31.6]} 6. Bg2 {[%clk 0:02:58.4]} 6... O-O {[%clk
0:02:30.8]} 7. O-O {[%clk 0:02:58.9]} 7... Nc6 {[%clk 0:02:29.8]} 8. Nc3 {[%clk
0:02:56.6]} 8... Nb6 {[%clk 0:02:28.2]} 9. e3 {[%clk 0:02:49.5]} 9... a5 {[%clk
0:02:28.6]} 10. b3 {[%clk 0:02:21.8]} 10... Bg4 {[%clk 0:02:17.4]} 11. h3 {[%clk
0:02:12.7]} 11... Be6 {[%clk 0:02:15]} 12. Ba3 {[%clk 0:02:12.1]} 12... Qd7
{[%clk 0:02:11.1]} 13. Kh2 {[%clk 0:01:49.3]} 13... a4 {[%clk 0:02:10.9]} 14.
Ne4 {[%clk 0:01:45.6]} 14... Bd5 {[%clk 0:02:09.7]} 15. Nc5 {[%clk 0:01:45]}
15... Qc8 {[%clk 0:02:10.8]} 16. bxa4 {[%clk 0:01:39.6]} 16... e5 {[%clk
0:02:01.6]} 17. Nxe5 {[%clk 0:01:22.2]} 17... Bxg2 {[%clk 0:01:56.4]} 18. Kxg2
{[%clk 0:01:21.8]} 18... Nxe5 {[%clk 0:01:50.9]} 19. dxe5 {[%clk 0:01:23.7]}
19... Bxe5 {[%clk 0:01:51.5]} 20. Rc1 {[%clk 0:01:22.2]} 20... Rd8 {[%clk
0:01:48.8]} 21. Qb3 {[%clk 0:01:16.3]} 21... Qf5 {[%clk 0:01:19.4]} 22. Rfd1
{[%clk 0:01:00.4]} 22... Bd6 {[%clk 0:01:18.9]} 23. e4 {[%clk 0:00:56.6]} 23...
Qe5 {[%clk 0:01:11.7]} 24. f4 {[%clk 0:00:52]} 24... Qe8 {[%clk 0:01:09.6]} 25.
e5 {[%clk 0:00:47.1]} 25... Bf8 {[%clk 0:01:04.9]} 26. Qf3 {[%clk 0:00:39.9]}
26... Nxa4 {[%clk 0:01:01]} 27. Nxa4 {[%clk 0:00:34.3]} 27... Rxd1 {[%clk
0:00:57.7]} 28. Rxd1 {[%clk 0:00:32.2]} 28... Bxa3 {[%clk 0:00:55.8]} 29. Qxa3
{[%clk 0:00:31]} 29... Rxa4 {[%clk 0:00:56.8]} 30. Qb3 {[%clk 0:00:27.7]} 30...
Qc6+ {[%clk 0:00:54.7]} 31. Kh2 {[%clk 0:00:27.9]} 31... Rc4 {[%clk 0:00:53.8]}
32. Rd2 {[%clk 0:00:27.8]} 32... Rc1 {[%clk 0:00:54.5]} 33. Rg2 {[%clk
0:00:27.7]} 33... b5 {[%clk 0:00:55.4]} 34. g4 {[%clk 0:00:27.3]} 34... Qe4
{[%clk 0:00:52.2]} 35. Qg3 {[%clk 0:00:24]} 35... b4 {[%clk 0:00:50]} 36. h4
{[%clk 0:00:23.7]} 36... Rc3 {[%clk 0:00:50.6]} 37. Qf2 {[%clk 0:00:21.3]} 37...
Rf3 {[%clk 0:00:51.7]} 38. Qd2 {[%clk 0:00:18.8]} 38... Qxf4+ {[%clk 0:00:51.9]}
39. Qxf4 {[%clk 0:00:18.5]} 39... Rxf4 {[%clk 0:00:53.8]} 0-1

[Event "*** Titled Tuesday Blitz"]
[Site "Chess.com"]
[Date "2019.11.05"]
[Round "3"]
[White "Ceejay271"]
[Black "sergeikim"]
[Result "1/2-1/2"]
[WhiteElo "2305"]
[BlackElo "2553"]
[TimeControl "180+2"]
[EndTime "13:38:17 PST"]
[Termination "Game drawn by repetition"]

1. d4 {[%clk 0:03:01.9]} 1... Nf6 {[%clk 0:03:00.1]} 2. c4 {[%clk 0:03:02.3]}
2... g6 {[%clk 0:03:01.2]} 3. Nc3 {[%clk 0:03:02.8]} 3... Bg7 {[%clk 0:03:01.9]}
4. e4 {[%clk 0:03:03.4]} 4... d6 {[%clk 0:03:02.9]} 5. h3 {[%clk 0:03:03.9]}
5... O-O {[%clk 0:03:02.9]} 6. Be3 {[%clk 0:03:04.5]} 6... e5 {[%clk 0:03:02.2]}
7. d5 {[%clk 0:03:05.4]} 7... a5 {[%clk 0:03:02.9]} 8. g4 {[%clk 0:03:06.1]}
8... Na6 {[%clk 0:03:03.4]} 9. Nge2 {[%clk 0:03:05.1]} 9... Nc5 {[%clk
0:03:03.5]} 10. Ng3 {[%clk 0:03:00.6]} 10... Bd7 {[%clk 0:03:03.8]} 11. f3
{[%clk 0:02:59.4]} 11... c6 {[%clk 0:03:03.2]} 12. Qd2 {[%clk 0:03:00.2]} 12...
cxd5 {[%clk 0:03:02.2]} 13. cxd5 {[%clk 0:03:02.1]} 13... Rc8 {[%clk 0:03:00.4]}
14. h4 {[%clk 0:03:02.7]} 14... a4 {[%clk 0:02:54.8]} 15. h5 {[%clk 0:03:02.2]}
15... Ne8 {[%clk 0:02:44.1]} 16. Bh6 {[%clk 0:02:55.5]} 16... Bxh6 {[%clk
0:02:42.1]} 17. Qxh6 {[%clk 0:02:53.2]} 17... Qe7 {[%clk 0:02:21.3]} 18. Rc1
{[%clk 0:02:08.3]} 18... g5 {[%clk 0:02:13.4]} 19. Nf5 {[%clk 0:01:59.5]} 19...
Bxf5 {[%clk 0:02:13.2]} 20. gxf5 {[%clk 0:01:57.8]} 20... f6 {[%clk 0:02:13]}
21. Rg1 {[%clk 0:01:52.2]} 21... Ng7 {[%clk 0:02:08.8]} 22. Bb5 {[%clk
0:01:44.4]} 22... Kh8 {[%clk 0:02:03.1]} 23. Ke2 {[%clk 0:01:41.6]} 23... Ra8
{[%clk 0:01:53.9]} 24. Rc2 {[%clk 0:01:04.9]} 24... Qf7 {[%clk 0:01:47.4]} 25.
Rh1 {[%clk 0:00:59.9]} 25... Qe7 {[%clk 0:01:34.5]} 26. Kf2 {[%clk 0:00:55.9]}
26... Ra5 {[%clk 0:01:29.6]} 27. Kg3 {[%clk 0:00:56.1]} 27... Kg8 {[%clk
0:01:23.2]} 28. Kg4 {[%clk 0:00:55]} 28... Rfa8 {[%clk 0:01:17.5]} 29. Rg1
{[%clk 0:00:51.5]} 29... Rf8 {[%clk 0:01:14]} 30. Rcg2 {[%clk 0:00:50.1]} 30...
Qc7 {[%clk 0:01:07.4]} 31. Kh3 {[%clk 0:00:49.9]} 31... Qf7 {[%clk 0:01:03.6]}
32. Kg4 {[%clk 0:00:49.9]} 32... Qc7 {[%clk 0:01:01.2]} 33. Kh3 {[%clk
0:00:50.4]} 33... Qf7 {[%clk 0:01:01.7]} 34. Kg4 {[%clk 0:00:50.8]} 34... Kh8
{[%clk 0:00:55.3]} 35. Rh2 {[%clk 0:00:48.8]} 35... Qc7 {[%clk 0:00:52.3]} 36.
Kh3 {[%clk 0:00:48.2]} 36... Qe7 {[%clk 0:00:46.9]} 37. Rhg2 {[%clk 0:00:47.1]}
37... Qf7 {[%clk 0:00:42.6]} 38. Kg4 {[%clk 0:00:47.6]} 38... Rg8 {[%clk
0:00:40.4]} 39. Rh2 {[%clk 0:00:45.7]} 39... Qe7 {[%clk 0:00:37.5]} 40. Rhg2
{[%clk 0:00:44.8]} 40... Qf7 {[%clk 0:00:38.3]} 41. Rh2 {[%clk 0:00:45.6]} 41...
Raa8 {[%clk 0:00:34.9]} 42. Rgh1 {[%clk 0:00:43.3]} 42... Qe7 {[%clk 0:00:31.5]}
43. Rg1 {[%clk 0:00:43.3]} 43... Rgf8 {[%clk 0:00:27.4]} 44. Rhg2 {[%clk
0:00:41.9]} 44... Qf7 {[%clk 0:00:26.6]} 45. Rh2 {[%clk 0:00:42.1]} 45... Qe7
{[%clk 0:00:27.1]} 46. Rhg2 {[%clk 0:00:42.6]} 46... Qf7 {[%clk 0:00:28]} 47.
Rh2 {[%clk 0:00:43.6]} 47... Qe7 {[%clk 0:00:29]} 1/2-1/2

[Event "*** Titled Tuesday Blitz"]
[Site "Chess.com"]
[Date "2019.11.05"]
[Round "3"]
[White "ehrenfeld"]
[Black "Jospem"]
[Result "1-0"]
[WhiteElo "2517"]
[BlackElo "2847"]
[TimeControl "180+2"]
[EndTime "13:38:18 PST"]
[Termination "ehrenfeld won by checkmate"]

1. e4 {[%clk 0:02:54.7]} 1... e5 {[%clk 0:03:00.5]} 2. Nc3 {[%clk 0:02:54.9]}
2... Nc6 {[%clk 0:03:01.7]} 3. Bc4 {[%clk 0:02:54.8]} 3... Bc5 {[%clk
0:03:01.6]} 4. Qg4 {[%clk 0:02:54.9]} 4... g6 {[%clk 0:02:54.5]} 5. Qf3 {[%clk
0:02:41.5]} 5... Nf6 {[%clk 0:02:55.4]} 6. Nge2 {[%clk 0:02:41.2]} 6... d6
{[%clk 0:02:56.6]} 7. d3 {[%clk 0:02:41.7]} 7... Bg4 {[%clk 0:02:57]} 8. Qg3
{[%clk 0:02:42.2]} 8... Qd7 {[%clk 0:02:45.6]} 9. h3 {[%clk 0:02:39.2]} 9... Be6
{[%clk 0:02:46.2]} 10. Bg5 {[%clk 0:02:27.2]} 10... Nh5 {[%clk 0:02:47.2]} 11.
Qf3 {[%clk 0:02:26.7]} 11... h6 {[%clk 0:02:46.5]} 12. Be3 {[%clk 0:02:24.1]}
12... Bxe3 {[%clk 0:02:39.4]} 13. Qxe3 {[%clk 0:02:19.7]} 13... Bxc4 {[%clk
0:02:39.1]} 14. dxc4 {[%clk 0:02:20.6]} 14... Nf6 {[%clk 0:02:40.1]} 15. O-O
{[%clk 0:02:15.2]} 15... g5 {[%clk 0:02:29.2]} 16. Rad1 {[%clk 0:02:14.5]} 16...
Qe7 {[%clk 0:02:28.6]} 17. Ng3 {[%clk 0:02:11.8]} 17... Nd4 {[%clk 0:02:27.5]}
18. Nd5 {[%clk 0:01:57.8]} 18... Nxd5 {[%clk 0:02:25.5]} 19. cxd5 {[%clk
0:01:58.3]} 19... f5 {[%clk 0:02:11.3]} 20. exf5 {[%clk 0:01:44.9]} 20... O-O
{[%clk 0:02:08.3]} 21. Rxd4 {[%clk 0:01:32]} 21... Rae8 {[%clk 0:02:08.7]} 22.
Rdd1 {[%clk 0:01:31.2]} 22... a6 {[%clk 0:02:10.1]} 23. Qf3 {[%clk 0:01:29.4]}
23... Qf7 {[%clk 0:02:11.4]} 24. Qh5 {[%clk 0:01:29.3]} 24... Qxh5 {[%clk
0:02:12.1]} 25. Nxh5 {[%clk 0:01:30.1]} 25... Rxf5 {[%clk 0:02:14]} 26. Ng3
{[%clk 0:01:29.2]} 26... Rf4 {[%clk 0:02:14.7]} 27. Rfe1 {[%clk 0:01:30.3]}
27... Rc4 {[%clk 0:02:15.4]} 28. c3 {[%clk 0:01:30.8]} 28... Rf8 {[%clk
0:02:13.9]} 29. Ne4 {[%clk 0:01:29.5]} 29... Ra4 {[%clk 0:02:12.2]} 30. a3
{[%clk 0:01:30.1]} 30... Ra5 {[%clk 0:02:13.5]} 31. f3 {[%clk 0:01:30.2]} 31...
Rb5 {[%clk 0:02:14.3]} 32. b4 {[%clk 0:01:30.3]} 32... Rd8 {[%clk 0:02:09.5]}
33. c4 {[%clk 0:01:30.8]} 33... Rb6 {[%clk 0:02:11.2]} 34. Kf2 {[%clk
0:01:29.7]} 34... Kg7 {[%clk 0:02:12.3]} 35. Ke3 {[%clk 0:01:30.2]} 35... Kg6
{[%clk 0:02:13.9]} 36. Rh1 {[%clk 0:01:27.3]} 36... c5 {[%clk 0:02:10.9]} 37.
bxc5 {[%clk 0:01:17.4]} 37... dxc5 {[%clk 0:02:12.5]} 38. Rb1 {[%clk 0:01:18.4]}
38... Rxb1 {[%clk 0:02:11.6]} 39. Rxb1 {[%clk 0:01:18.7]} 39... b5 {[%clk
0:02:13.5]} 40. cxb5 {[%clk 0:01:18.4]} 40... axb5 {[%clk 0:02:15.4]} 41. Rxb5
{[%clk 0:01:18.9]} 41... Rxd5 {[%clk 0:02:17]} 42. Rb6+ {[%clk 0:01:19.2]} 42...
Kg7 {[%clk 0:02:17.9]} 43. Rc6 {[%clk 0:01:18.4]} 43... Rd1 {[%clk 0:02:18.1]}
44. Rxc5 {[%clk 0:01:18.2]} 44... Ra1 {[%clk 0:02:19.8]} 45. Rc3 {[%clk
0:01:15.9]} 45... Ra2 {[%clk 0:02:21]} 46. g4 {[%clk 0:01:16.4]} 46... Kf7
{[%clk 0:02:22.6]} 47. Kd3 {[%clk 0:01:15.8]} 47... Ke6 {[%clk 0:02:24]} 48. Kc4
{[%clk 0:01:16.7]} 48... Kd7 {[%clk 0:02:23.9]} 49. Kd5 {[%clk 0:01:17]} 49...
Rh2 {[%clk 0:02:23.7]} 50. Kxe5 {[%clk 0:01:17.3]} 50... Rxh3 {[%clk 0:02:25.3]}
51. a4 {[%clk 0:01:17.5]} 51... Rh1 {[%clk 0:02:25.7]} 52. Ra3 {[%clk
0:01:16.7]} 52... Kc7 {[%clk 0:02:27.2]} 53. a5 {[%clk 0:01:17.9]} 53... Kb7
{[%clk 0:02:28.8]} 54. a6+ {[%clk 0:01:19.2]} 54... Ka7 {[%clk 0:02:30.4]} 55.
Kf5 {[%clk 0:01:19.5]} 55... Rc1 {[%clk 0:02:29.7]} 56. Nd6 {[%clk 0:01:16]}
56... Rc5+ {[%clk 0:02:29.8]} 57. Ke6 {[%clk 0:01:15.6]} 57... Ka8 {[%clk
0:02:30.8]} 58. a7 {[%clk 0:01:15.7]} 58... h5 {[%clk 0:02:32.3]} 59. gxh5
{[%clk 0:01:08.8]} 59... g4 {[%clk 0:02:33.8]} 60. h6 {[%clk 0:01:09.9]} 60...
g3 {[%clk 0:02:33]} 61. Kf6 {[%clk 0:01:01.4]} 61... Rc1 {[%clk 0:02:31.4]} 62.
f4 {[%clk 0:00:59]} 62... g2 {[%clk 0:02:31.5]} 63. h7 {[%clk 0:00:56]} 63...
Rh1 {[%clk 0:02:15.8]} 64. Rg3 {[%clk 0:00:54.7]} 64... Rxh7 {[%clk 0:02:12.3]}
65. Rxg2 {[%clk 0:00:53.5]} 65... Rh6+ {[%clk 0:02:13.8]} 66. Ke5 {[%clk
0:00:52.8]} 66... Rh1 {[%clk 0:02:14.5]} 67. f5 {[%clk 0:00:52.9]} 67... Re1+
{[%clk 0:02:15.9]} 68. Ne4 {[%clk 0:00:53.5]} 68... Kxa7 {[%clk 0:02:15.4]} 69.
f6 {[%clk 0:00:54.5]} 69... Rf1 {[%clk 0:02:16.1]} 70. Rf2 {[%clk 0:00:55.1]}
70... Ra1 {[%clk 0:02:18]} 71. f7 {[%clk 0:00:55.9]} 71... Ra5+ {[%clk
0:02:19.9]} 72. Kd4 {[%clk 0:00:56]} 72... Ra6 {[%clk 0:02:21.8]} 73. f8=Q
{[%clk 0:00:55.8]} 73... Ra4+ {[%clk 0:02:23.7]} 74. Kd5 {[%clk 0:00:54.1]}
74... Ra5+ {[%clk 0:02:25.6]} 75. Nc5 {[%clk 0:00:53]} 75... Kb6 {[%clk
0:02:25.2]} 76. Rf6+ {[%clk 0:00:47.6]} 76... Kb5 {[%clk 0:02:26]} 77. Qb8#
{[%clk 0:00:47.8]} 1-0

[Event "*** Titled Tuesday Blitz"]
[Site "Chess.com"]
[Date "2019.11.05"]
[Round "3"]
[White "semchik73"]
[Black "riconaipe"]
[Result "0-1"]
[WhiteElo "2395"]
[BlackElo "2613"]
[TimeControl "180+2"]
[EndTime "13:38:23 PST"]
[Termination "riconaipe won by resignation"]

1. Nf3 {[%clk 0:03:00.7]} 1... Nf6 {[%clk 0:03:00]} 2. c4 {[%clk 0:03:01.2]}
2... e6 {[%clk 0:03:01.1]} 3. Nc3 {[%clk 0:03:02.6]} 3... d5 {[%clk 0:03:02.3]}
4. d4 {[%clk 0:03:04.1]} 4... a6 {[%clk 0:02:58.5]} 5. Bg5 {[%clk 0:03:04.9]}
5... Be7 {[%clk 0:02:59.2]} 6. e3 {[%clk 0:03:05.3]} 6... O-O {[%clk 0:02:58.2]}
7. Bd3 {[%clk 0:03:06.1]} 7... dxc4 {[%clk 0:02:59.5]} 8. Bxc4 {[%clk
0:03:05.9]} 8... b5 {[%clk 0:03:01]} 9. Bd3 {[%clk 0:03:07.3]} 9... Bb7 {[%clk
0:03:02.1]} 10. O-O {[%clk 0:03:07.2]} 10... Nbd7 {[%clk 0:03:02.2]} 11. Rc1
{[%clk 0:03:08]} 11... c5 {[%clk 0:03:03.2]} 12. Qe2 {[%clk 0:03:05.8]} 12...
cxd4 {[%clk 0:03:02.8]} 13. Nxd4 {[%clk 0:03:05.9]} 13... Nc5 {[%clk 0:02:40.9]}
14. Bb1 {[%clk 0:03:06.4]} 14... Nd5 {[%clk 0:02:39.5]} 15. Bxe7 {[%clk
0:03:01.1]} 15... Qxe7 {[%clk 0:02:41.4]} 16. Nxd5 {[%clk 0:03:00.5]} 16... Bxd5
{[%clk 0:02:33.4]} 17. Qc2 {[%clk 0:02:47.6]} 17... Ne4 {[%clk 0:02:31.4]} 18.
f3 {[%clk 0:02:48.3]} 18... Nf6 {[%clk 0:02:31.2]} 19. e4 {[%clk 0:02:44.9]}
19... Bc4 {[%clk 0:02:29.1]} 20. e5 {[%clk 0:02:45.4]} 20... Qc5 {[%clk
0:02:09.1]} 21. exf6 {[%clk 0:02:44]} 21... Qxd4+ {[%clk 0:02:10.2]} 22. Kh1
{[%clk 0:02:40.4]} 22... g6 {[%clk 0:02:11.2]} 23. Rfd1 {[%clk 0:02:24.8]} 23...
Qxf6 {[%clk 0:02:12]} 24. b3 {[%clk 0:02:21.4]} 24... Bd5 {[%clk 0:02:12]} 25.
Qd2 {[%clk 0:02:17.5]} 25... Rac8 {[%clk 0:02:10.4]} 26. Qh6 {[%clk 0:02:17.6]}
26... Qg7 {[%clk 0:02:07.9]} 27. Qg5 {[%clk 0:02:17.6]} 27... h6 {[%clk
0:02:08.6]} 28. Qe3 {[%clk 0:02:17.9]} 28... h5 {[%clk 0:02:01.4]} 29. b4 {[%clk
0:02:10.5]} 29... Qb2 {[%clk 0:01:58.3]} 30. Qg5 {[%clk 0:02:06.5]} 30... Kg7
{[%clk 0:01:55.1]} 31. h4 {[%clk 0:01:52.1]} 31... Qf6 {[%clk 0:01:45]} 32. Qg3
{[%clk 0:01:50]} 32... Rfd8 {[%clk 0:01:43]} 33. Rc7 {[%clk 0:01:43.5]} 33...
Rxc7 {[%clk 0:01:38.7]} 34. Qxc7 {[%clk 0:01:44.3]} 34... Qxh4+ {[%clk
0:01:39.6]} 35. Kg1 {[%clk 0:01:45.7]} 35... Re8 {[%clk 0:01:30.6]} 36. Qd7
{[%clk 0:01:34.1]} 36... Qe7 {[%clk 0:01:26.5]} 37. Qxe7 {[%clk 0:01:22.6]}
37... Rxe7 {[%clk 0:01:28.4]} 38. Rc1 {[%clk 0:01:23.8]} 38... Bc4 {[%clk
0:01:25.5]} 39. Rd1 {[%clk 0:01:21.1]} 39... Bd5 {[%clk 0:01:21.7]} 40. Rc1
{[%clk 0:01:21.8]} 40... Kf6 {[%clk 0:01:15.8]} 41. Rc8 {[%clk 0:01:21.6]} 41...
Rd7 {[%clk 0:01:14.1]} 42. Kh2 {[%clk 0:01:21.1]} 42... Rd6 {[%clk 0:01:15.1]}
43. a3 {[%clk 0:01:13.9]} 43... Rc6 {[%clk 0:01:16.1]} 44. Rd8 {[%clk
0:01:05.9]} 44... Rc3 {[%clk 0:01:14.6]} 45. Kg3 {[%clk 0:01:01.1]} 45... Rxa3
{[%clk 0:01:15.4]} 46. Rc8 {[%clk 0:00:56]} 46... Ra4 {[%clk 0:01:10.7]} 47. Bd3
{[%clk 0:00:51.8]} 47... Rxb4 {[%clk 0:01:11.4]} 48. Be2 {[%clk 0:00:50.1]}
48... a5 {[%clk 0:01:07.9]} 49. Rc5 {[%clk 0:00:50.1]} 49... a4 {[%clk
0:01:08.7]} 50. Bxb5 {[%clk 0:00:49.8]} 50... a3 {[%clk 0:01:09.8]} 51. Be8
{[%clk 0:00:50.5]} 51... a2 {[%clk 0:01:08.6]} 52. Ra5 {[%clk 0:00:51.3]} 52...
Rb8 {[%clk 0:01:02.5]} 53. Bd7 {[%clk 0:00:45.1]} 53... Ke7 {[%clk 0:01:01.3]}
54. Ra7 {[%clk 0:00:37.4]} 54... Rb7 {[%clk 0:01:01.6]} 0-1